{"text_format":"1","workbook":"xlsx","n_sheets":4,"sheets":["Job Sheet","D4 Varieties","D4_All_Var","Lookup"],"not_rendered":{"charts":0,"images":2,"macros":1,"external_links":0,"defined_names":39,"comments":0,"pivot_tables":0},"unopened":[],"bounds":{"document_bytes":16777216,"sheet_cells":100000,"rows_first":2000,"rows_last":500,"rows_between":2000,"halvings":0,"cell_chars":16384,"cell_head_chars":4096},"cells_cut":0,"cells_raw":0,"read":"whole","date_system":"1900"}

{"sheet":"Job Sheet","index":0,"n_rows":114,"n_cols":12,"rows_kept":114,"cut":false,"hidden":false,"merged":[[4,9,4,11],[61,1,61,3],[64,1,64,11],[54,9,54,11],[61,4,61,11],[55,1,55,11],[60,1,60,3],[60,4,60,11],[59,1,59,3],[59,4,59,11],[57,1,57,2],[57,10,57,11],[57,4,57,5],[57,6,57,8],[90,9,90,11],[91,1,91,11],[85,1,85,11],[86,1,86,11],[65,1,65,11],[69,4,69,5],[68,1,68,10],[66,1,66,3],[66,4,66,11],[67,1,67,3],[67,4,67,11],[95,1,95,11],[94,1,94,3],[94,4,94,11],[63,9,63,11],[82,1,82,5],[69,9,69,10],[82,7,82,8],[82,9,82,10],[92,1,92,11],[93,1,93,11],[83,1,83,11],[84,1,84,11],[87,1,87,3],[87,4,87,11],[88,1,88,3],[88,4,88,11]]}
[null,"Texas Monarch & Pollinator Habitat Enhancement and Restoration Job Sheet"]
[]
[]
[null,"Conservation Practice Job Sheet - State SWCD District 4"]
[null,"Texas State Soil and Water Conservation Board",null,null,null,null,null,null,null,"2016-04-01"]
[]
[]
[]
[]
[]
[]
[]
[]
[]
[]
[]
[]
[]
[]
[]
[]
[]
[]
[]
[]
[]
[]
[]
[]
[]
[]
[]
[]
[]
[]
[]
[]
[]
[]
[]
[]
[]
[]
[]
[]
[]
[]
[]
[]
[]
[]
[]
[]
[null,"Conservation Practice Job Sheet - State SWCD District 4"]
[null,"Texas State Soil and Water Conservation Board",null,null,null,null,null,null,null,"2016-04-01"]
[null,"PLANTING SPECIFICATION SHEET"]
[]
[null,"Client: ",null,null,"Planner: ",null,null,null,null,"Date: "]
[]
["visible","Seedbed Preparation Method(s) ",null,null,"Remarks"]
[{"$f":"ISTEXT(B61)","v":false},null,null,null,{"$f":"IF(ISTEXT($B61),(VLOOKUP($B61,Lookup!$A$3:$B$6,2,FALSE)),)","v":0},{"$f":"IF(ISTEXT($D61),(VLOOKUP($D61,#REF!,2)),0)","v":0},{"$f":"IF(ISTEXT($D61),(VLOOKUP($D61,#REF!,2)),0)","v":0},{"$f":"IF(ISTEXT($D61),(VLOOKUP($D61,#REF!,2)),0)","v":0},{"$f":"IF(ISTEXT($D61),(VLOOKUP($D61,#REF!,2)),0)","v":0},{"$f":"IF(ISTEXT($D61),(VLOOKUP($D61,#REF!,2)),0)","v":0},{"$f":"IF(ISTEXT($D61),(VLOOKUP($D61,#REF!,2)),0)","v":0},{"$f":"IF(ISTEXT($D61),(VLOOKUP($D61,#REF!,2)),0)","v":0}]
[{"$f":"ISTEXT(B62)","v":false},null,null,null,{"$f":"IF(ISTEXT($B62),(VLOOKUP($B62,Lookup!$A$3:$B$6,2,FALSE)),)","v":0},{"$f":"IF(ISTEXT($D62),(VLOOKUP($D62,#REF!,2)),0)","v":0},{"$f":"IF(ISTEXT($D62),(VLOOKUP($D62,#REF!,2)),0)","v":0},{"$f":"IF(ISTEXT($D62),(VLOOKUP($D62,#REF!,2)),0)","v":0},{"$f":"IF(ISTEXT($D62),(VLOOKUP($D62,#REF!,2)),0)","v":0},{"$f":"IF(ISTEXT($D62),(VLOOKUP($D62,#REF!,2)),0)","v":0},{"$f":"IF(ISTEXT($D62),(VLOOKUP($D62,#REF!,2)),0)","v":0},{"$f":"IF(ISTEXT($D62),(VLOOKUP($D62,#REF!,2)),0)","v":0}]
[true,"Conservation Practice Job Sheet - State SWCD District 4"]
[true,"Texas State Soil and Water Conservation Board",null,null,null,null,null,null,null,"2012-02-01"]
[true,"PLANTING SPECIFICATION SHEET"]
[null,"Agreed Planting Date (Print Date):"]
[true,"Seedbed Operation Method",null,null,"Remarks"]
[false,null,null,null,{"$f":"IF(ISTEXT($B68),(VLOOKUP($B68,Lookup!$A$10:$B$13,2,FALSE)),)","v":0},{"$f":"IF(ISTEXT($D68),(VLOOKUP($D68,#REF!,2)),0)","v":0},{"$f":"IF(ISTEXT($D68),(VLOOKUP($D68,#REF!,2)),0)","v":0},{"$f":"IF(ISTEXT($D68),(VLOOKUP($D68,#REF!,2)),0)","v":0},{"$f":"IF(ISTEXT($D68),(VLOOKUP($D68,#REF!,2)),0)","v":0},{"$f":"IF(ISTEXT($D68),(VLOOKUP($D68,#REF!,2)),0)","v":0},{"$f":"IF(ISTEXT($D68),(VLOOKUP($D68,#REF!,2)),0)","v":0},{"$f":"IF(ISTEXT($D68),(VLOOKUP($D68,#REF!,2)),0)","v":0}]
[true,"Seed Amounts Required"]
[true,"Field Nos.","Acres to be Planted","Species","Planting Rate per Acre",null,"% of Mix","Amount Required per Acre",null,"Total Amount Required"]
[{"$f":"ISTEXT(D71)","v":false},null,null,null,{"$f":"IF($A71=FALSE,0,(VLOOKUP($D71,'D4 Varieties'!$A$4:$C$86,2)))","v":0},{"$f":"IF(ISTEXT($D71),(VLOOKUP($D71,'D4 Varieties'!$A$4:$C$61,3)),0)","v":0},null,{"$f":"E71*G71","v":0},{"$f":"F71","v":0},{"$f":"$C$71*H71","v":0},{"$f":"F71","v":0}]
[{"$f":"ISTEXT(D72)","v":false},null,null,null,{"$f":"IF($A72=FALSE,0,(VLOOKUP($D72,'D4 Varieties'!$A$4:$C$86,2)))","v":0},{"$f":"IF(ISTEXT($D72),(VLOOKUP($D72,'D4 Varieties'!$A$4:$C$61,3)),0)","v":0},null,0,{"$f":"F72","v":0},{"$f":"$C$71*H72","v":0},{"$f":"F72","v":0}]
[false,null,null,null,{"$f":"IF($A73=FALSE,0,(VLOOKUP($D73,'D4 Varieties'!$A$4:$C$86,2)))","v":0},{"$f":"IF(ISTEXT($D73),(VLOOKUP($D73,'D4 Varieties'!$A$4:$C$61,3)),0)","v":0},null,0,{"$f":"F73","v":0},0,{"$f":"F73","v":0}]
[false,null,null,null,{"$f":"IF($A74=FALSE,0,(VLOOKUP($D74,'D4 Varieties'!$A$4:$C$86,2)))","v":0},{"$f":"IF(ISTEXT($D74),(VLOOKUP($D74,'D4 Varieties'!$A$4:$C$61,3)),0)","v":0},null,0,{"$f":"F74","v":0},0,{"$f":"F74","v":0}]
[false,null,null,null,{"$f":"IF($A75=FALSE,0,(VLOOKUP($D75,'D4 Varieties'!$A$4:$C$86,2)))","v":0},{"$f":"IF(ISTEXT($D75),(VLOOKUP($D75,'D4 Varieties'!$A$4:$C$61,3)),0)","v":0},null,0,{"$f":"F75","v":0},0,{"$f":"F75","v":0}]
[false,null,null,null,{"$f":"IF($A76=FALSE,0,(VLOOKUP($D76,'D4 Varieties'!$A$4:$C$86,2)))","v":0},{"$f":"IF(ISTEXT($D76),(VLOOKUP($D76,'D4 Varieties'!$A$4:$C$61,3)),0)","v":0},null,0,{"$f":"F76","v":0},0,{"$f":"F76","v":0}]
[false,null,null,null,{"$f":"IF($A77=FALSE,0,(VLOOKUP($D77,'D4 Varieties'!$A$4:$C$86,2)))","v":0},{"$f":"IF(ISTEXT($D77),(VLOOKUP($D77,'D4 Varieties'!$A$4:$C$61,3)),0)","v":0},null,{"$f":"E77*G77","v":0},0,0,0]
[false,null,null,null,{"$f":"IF($A78=FALSE,0,(VLOOKUP($D78,'D4 Varieties'!$A$4:$C$86,2)))","v":0},{"$f":"IF(ISTEXT($D78),(VLOOKUP($D78,'D4 Varieties'!$A$4:$C$61,3)),0)","v":0},null,0,0,0,0]
[false,null,null,null,{"$f":"IF($A79=FALSE,0,(VLOOKUP($D79,'D4 Varieties'!$A$4:$C$86,2)))","v":0},{"$f":"IF(ISTEXT($D79),(VLOOKUP($D79,'D4 Varieties'!$A$4:$C$61,3)),0)","v":0},null,0,0,0,0]
[false,null,null,null,{"$f":"IF($A80=FALSE,0,(VLOOKUP($D80,'D4 Varieties'!$A$4:$C$86,2)))","v":0},{"$f":"IF(ISTEXT($D80),(VLOOKUP($D80,'D4 Varieties'!$A$4:$C$61,3)),0)","v":0},null,0,0,0,0]
[false,null,null,null,{"$f":"IF($A81=FALSE,0,(VLOOKUP($D81,'D4 Varieties'!$A$4:$C$86,2)))","v":0},{"$f":"IF(ISTEXT($D81),(VLOOKUP($D81,'D4 Varieties'!$A$4:$C$61,3)),0)","v":0},null,0,0,0,0]
[false,null,null,null,{"$f":"IF($A82=FALSE,0,(VLOOKUP($D82,'D4 Varieties'!$A$4:$C$86,2)))","v":0},{"$f":"IF(ISTEXT($D82),(VLOOKUP($D82,'D4 Varieties'!$A$4:$C$61,3)),0)","v":0},null,0,0,0,0]
[true,"Total ",null,null,null,null,{"$f":"SUM(G71:G82)","v":0},{"$f":"SUM(H71:H82)","v":0},null,{"$f":"SUM(J71:J82)","v":0}]
[true,"Management Activities to Ensure a Successfully Establish Plant Stand"]
[true,"Newly seeded grasses can take up to 3 years to establish (depending upon climatic conditions.)  During this time frame, all considerations should be taken to ensure the best chances for success.  This may include fertilization and mechanical weed control.  "]
[true,"Fertilizer  "]
[true,"Fertilizer may be needed when re-seeding retired cropland, it will most likely be necessary to apply nutrients to raise the fertilility level to support emerging vegetation. In this case, apply nutrients according the NRCS Nutrient Management (590) standard. A soils test should be taken prior to fertilization. The soil test should note \"for establishment\" instead of listing a yield goal that would be for production purposes."]
[true,"Weed Control Method",null,null,"Remarks"]
[false,null,null,null,{"$f":"IF(ISTEXT($B89),(VLOOKUP($B89,Lookup!$A$17:$B$18,2,FALSE)),)","v":0}]
[true,"Conservation Practice Job Sheet - SWCD State District 4"]
[true,"Texas State Soil and Water Conservation Board",null,null,null,null,null,null,null,"2016-04-01"]
[true,"PLANTING SPECIFICATION SHEET"]
[false]
[false]
[false]
[true,"Client's Acknowledgement"]
[true,"By signing below I acknowledge that:"]
[true]
[true]
[true]
[true]
[true]
[true]
[true]
[true]
[true]
[true]
[true]
[true]
[true]
[true,"Signature ",null,null,null,null,null,"Date"]
[true]
[true]
[true]

{"sheet":"D4 Varieties","index":1,"n_rows":78,"n_cols":3,"rows_kept":78,"cut":false,"hidden":false,"merged":[[1,0,2,0],[1,1,2,1],[0,0,0,38]]}
["Appendix 1 - Planting rates for seeding  Zone 4"]
[" Name","Seeding rates are pounds pure live seed (PLS) per acre   3/, 5/, 6/"]
[]
["Alfalfa","20","PLS"]
["American star‐thistle",3.2,"PLS"]
["azure blue sage",13.6,"PLS"]
["Baldwin's ironweed",4,"PLS"]
["bearded beggarticks",11.7,"PLS"]
["Black-eyed Susan,  Rudbeckia hirta","2","PLS"]
["blacksamson echinacea",11.9,"PLS"]
["blue mistflower",0.3,"PLS"]
["Bluestem,  big (Earl, Kaw, native harvest)","6.0","PLS"]
["Bluestem,  little (Aldous, Cimarron, native harvest)    ",3.4,"PLS"]
["Bristlegrass: Plains (Kika 648 Germplasm)",2,"PLS"]
["Bristlegrass:Streambed (Kika 677 Germplasm, Kika 819 Germplasm, Kika 820 Germplasm)",3,"PLS"]
["Buffalograss: burs (Texoka)","8.0","PLS"]
["Buffalograss: dehulled","3.0","PLS"]
["button eryngo, rattlesnake master",12.3,"PLS"]
["Commercial Wildflower Mix","5.0"]
["common sunflower",32.4,"PLS"]
["compassplant",84.7,"PLS"]
["dotted blazing star",11,"PLS"]
["Dropseed: sand (Borden CO Germplasm)","1.0","PLS"]
["Eastern gamagrass (Jackson, San Marcos)","10.0","PLS"]
["Eastern gamagrass (native harvest)","20"]
["Engelmanndaisy","15.0","PLS"]
["Entireleaf Indian paintbrush",0.3,"PLS"]
["False Rhodesgrass (Kinney Gerplasm)","1.0","PLS"]
["Fescue, Tall (Kentucky-31)","10.0","PLS"]
["Florida paspalum (Harrison germplasm)","8.0","PLS"]
["Grama: Hairy (Chaparral Germplasm)","2.0","PLS"]
["Grama: Slender (Dilley Germplasm)","8.0","PLS"]
["Grama: Texas (Atascosa Germplasm)","10.0","PLS"]
["gray goldenrod",0.7,"PLS"]
["Herbaceous mimosa (Crockett Germplasm)","7.0","PLS"]
["Illinois bundleflower (Sabine, native harvest)","5.0","PLS"]
["Indiangrass, yellow (Lometa)  ","4.5","PLS"]
["lateflowering thoroughwort",0.7,"PLS"]
["Maximilian sunflower (Aztec, native harvest)","3.0","PLS"]
["Pappusgrass: Pink (Maverick Germplasm)","3.0","PLS"]
["Pappusgrass: Whiplash (Webb Germplasm)","3.0","PLS"]
["Partridge pea (Comanche, native harvest)",13.4,"PLS"]
["Pennsylvania smartweed",12.1,"PLS"]
["pinkscale blazing star",3.7,"PLS"]
["Prairie acacia (Plains Germplasm, native harvest)","5.0","PLS"]
["Prairie clover,  white","2.0","PLS"]
["purple prairie clover",5.5,"PLS"]
["Purpletop Tridens, Tridens flavus","4.0","PLS"]
["roughstem rosinweed",36.6,"PLS"]
["roundhead prairie clover",1.3,"PLS"]
["sawtooth sunflower",2.4,"PLS"]
["Showy goldenrod, Solidago speciosa","1.0","PLS"]
["Slender mountain mint, Pycnanthemum tenuifolium","3.0","PLS"]
["Sprangletop, Green (Van Horn)",1.7,"PLS"]
["Swamp sunflower, Helianthus angustifolious","2.0","PLS"]
["Switchgrass   (Alamo)","2.0","PLS"]
["Switchgrass   (native harvest)",3.5,"PLS"]
["Switchgrass (Alamo)   ",2,"PLS"]
["Switchgrass (native harvest)   ",3.5,"PLS"]
["Thickspike gayfeather, Liatris pycnostachya","2.0","PLS"]
["Velvet rosettegrass (Pilgrim Germplasm)","3.0","PLS"]
["Western Ragweed",7.5,"PLS"]
["white crownbeard",5.9,"PLS"]
["white heath aster",0.5,"PLS"]
["Wildrye, Virginia",3,"PLS"]
["Wildrye: Canada",3,"PLS"]
["Wildrye: Canada (Lavaca Germplasm)",10,"PLS"]
["Wildrye: Canada,Elymus canadensis (Lavaca Germplasm, native harvest)",12,"PLS"]
["Wildrye: Virginia,  Elymus virginicus(Omaha, Kinchaffoonee Germplasm, native harvest)",12,"PLS"]
["willowleaf aster",20.5,"PLS"]
["Windmillgrass: Hooded (Mariah Germplasm)",0.7,"PLS"]
["Windmillgrass: Hooded (Mariah Germplasm)",0.7,"PLS"]
["Windmillgrass: shortspike (Welder Germplasm)",0.5,"PLS"]
["Windmillgrass: shortspike (Welder Germplasm)",0.5,"PLS"]
["wrinkleleaf goldenrod",1.5,"PLS"]
["Yellow wild indigo, Baptista sphaerocarpa","5.0","PLS"]
["Zexmenia: orange (common)",3.4,"PLS"]
["Zexmenia: orange (Goliad Germplasm)",6,"PLS"]

{"sheet":"D4_All_Var","index":2,"n_rows":56,"n_cols":3,"rows_kept":56,"cut":false,"hidden":false,"merged":[[0,0,1,0],[0,1,1,1],[0,2,1,2]]}
["PERENNIAL GRASSES       1/, 4/","Seeding rate 3/, 6/ (PLS per acre unless noted as Com.)"]
[]
["Acacia, Prairie (Plains Germplasm)",5,"PLS"]
["Bluestem:  big (Earl, Kaw, native harvest)",6,"PLS"]
["Bluestem:  little     ",3.4,"PLS"]
["Bristlegrass, Plains (Kika 648 Germplasm)",2,"PLS"]
["Bristlegrass, Plains:",3,"PLS"]
["Bristlegrass:  Streambed (Kika 677 Germplasm,     Kika 819 Germplasm,        Kika 820 Germplasm)",3,"PLS"]
["Buffalo grass:(Burs - treated)",8,"PLS"]
["Bundleflower (Bee Wild)",3,"PLS"]
["Bundleflower, Illinois (Sabine)",13.6,"PLS"]
["Bushsunflower: awnless (Plateau)",2.6,"PLS"]
["Chloris: (2 & 4-Flower Trichloris)",1.2,"PLS"]
["Clammyweed, Rio Grande (Zapata Germplasm)",8,"PLS"]
["Commercial Wildflower Mix",5]
["Cottontop:  Arizona",1.2,"PLS"]
["Cottontop:  Arizona (La Salle Germplam)",2,"PLS"]
["Dropseed, Sand ",1,"PLS"]
["Eastern gamagrass: (Iuka, Iuka 4, Pete)",10,"PLS"]
["Eastern gamagrass: (Jackson, San Marcos, Texas Sue)",10,"PLS"]
["Eastern gamagrass: (Native harvest)",10,"PLS"]
["Engelmanndaisy (Eldorado)",15,"PLS"]
["Grama: Hairy (Chaparral Germplasm)",2,"PLS"]
["Grama: Sideoats (El Reno)",4.5,"PLS"]
["Grama: Sideoats (Haskell)",4.5,"PLS"]
["Grama: Sideoats (Uvalde)",4.5,"PLS"]
["Grama: Slender (Dilley Germplasm)",8,"PLS"]
["Grama: Texas (Atascosa Germplasm)",10,"PLS"]
["Indiangrass: yellow (Lometa)  ",4.5,"PLS"]
["Lespedeza: (Serecia)",2.2999999999999998,"PLS"]
["Leucaena (Popinac)",4,"PLS"]
["Leucaena (Tepequaje)",4,"PLS"]
["Lovegrass, Sand (Mason)",1.5,"PLS"]
["Lovegrass, Sand (native)",0.5,"PLS"]
["Maximilian sunflower (Aztec)",3,"PLS"]
["Pappasgrass, Pink & Whiplash",2.5,"PLS"]
["Pappasgrass: Pink (Maverick Germplasm)",3,"PLS"]
["Pappasgrass: Whiplash (Webb Germplasm)",3,"PLS"]
["Partridge pea (Comanch, native harvest)",13.4,"PLS"]
["Plantain, Hooker's (STN 561 Germplasm, native harvest)",10,"PLS"]
["Plantain, Redseed (STN 496 Germplasm, native harvest)",10,"PLS"]
["Prairie clover:  purple (Cuero Germplasm)",3,"PLS"]
["Prairie clover:  white",2,"PLS"]
["Sacaton, Alkali",1,"PLS"]
["Sacaton, Big (Falfurrias Germplasm)",1,"PLS"]
["Sprangletop, Green (Van Horn)",1.7,"PLS"]
["Switchgrass (Alamo)   ",2,"PLS"]
["Switchgrass (native harvest)   ",3.5,"PLS"]
["Western Ragweed",7.5,"PLS"]
["Wildrye, Virginia",3,"PLS"]
["Wildrye: Canada",3,"PLS"]
["Wildrye: Canada (Lavaca Germplasm)",10,"PLS"]
["Windmillgrass: Hooded (Mariah Germplasm)",0.7,"PLS"]
["Windmillgrass: shortspike (Welder Germplasm)",0.5,"PLS"]
["Zemenia: orange (common)",3.4,"PLS"]
["Zemenia: orange (Goliad Germplasm)",6,"PLS"]

{"sheet":"Lookup","index":3,"n_rows":17,"n_cols":2,"rows_kept":17,"cut":false,"hidden":false,"merged":[]}
["Seedbed Prep"]
["Type","Description"]
["Conventional Tillage for Dead Litter Cover Crop","A seedbed shall be prepared for a dead litter cover crop using typical farming equipment such as tandem disks, chisels, etc.  The seedbed shall be firm, free of weed competition and not have a restrictive layer such as a plowpan.  "]
["Prescribed Burning","Used to remove excess growth of existing vegetative cover prior to conventional tillage.  ALL PRESCRIBED BURNS SHOULD BE PERFORMED ACCORDING TO AN APPROVED PRESCRIBED BURN PLAN."]
["Dead Litter Cover Crop","For new grass plantings, a dead litter cover crop shall be established.  The dead litter cover crop shall have a high residue producing crop such as a small grain or sorghum.  This crop will be established to protect the soil surface from wind and water erosion.  This cover crop will also provide a protective cover for grass establishment.  The dead litter cover crop will be terminated chemically or mechanically prior to the production of mature seed.  Small grains should be planted at a rate of 40 lbs/ac from August 15 to November1 (except for Spring Oats which shall be planted from January 15 to April 1.)  Forage sorghum shall be planted at a rate of 4 to 10 lbs/ac from April 1 to August 1.  "]
["Chemical; existing stand","A no-till method of seed bed preparation will be used to maintain the maximum amount of crop residue on the soil surface to protect the land from wind erosion while enhancing established monoculture stands of vegetation.  This practice will be applied to 51% of the  offered acreage with a minimum of 3 strips spread across the offered acreage.  Burn or shred the existing introduced grass stand early in the spring.  If old or decadent plant material is not removed by shredding or burning, the chemical application will not be affective.  Allow 4 to 6 inches of new re-growth and apply glyphosate at a rate of 1.5 lbs of Acid Eqivalent(AE) per acre.  Shred grass again in late August or September.  Allow at least 6 to 8 inches of re-growth and apply glyphosate at rate of 1.5 lbs of AE per acre. APPLY ONLY WHEN AND IF PLANTS ARE ACTIVELY GROWING AND NOT WHEN THEY ARE MOISTURE STRESSED. Then allow the plants to remain through the winter. If existing vegetation greens up in the spring, apply glyphosate at a rate of .75 lb of AE per acre in March or April.  Plant native grass mixture into the existing residue according to recommended planting dates. For ammonium sulfate and surfactant, refer to the specific product label.   NOTE: All Prescribed Burn Plans should be Performed According to an Approved Prescribed Burn Plan.  "]
[]
["Seeding Op"]
["Type","Description"]
["Drill","A grass drill equipped with double disk openers having depth bands followed by cultipacker, press wheels or drag chains is recommended. (Press wheels or cultipacking are preferred). Seed should be planted 1/4 to 3/4 inches deep. The distance between rows should not exceed 12 inches.  Legumes shall be inoculated with the proper Rhizobia bacteria before planting."]
["Broadcast","Broadcast seed followed by cultipacking to assure that the seed can be firmly anchored into the soil. Cultipacking before and after seed placement is preferred."]
["No-Till","Plant seed into a dead litter cover using a No-Till grass drill. Drill must be equipped with double disc furrow openers and depth bands to optimize seed placement and seed to soil contact. Multiple seed boxes are recommended to give you the flexibility to seed various types/sizes of seeds in a single operation. Use of herbicides such as glyphosphate may be needed to kill existing vegetation or cover crop. Legumes shall be inoculated with the proper Rhizobia bacteria before planting."]
[]
[]
["Weed Control"]
["Type","Description"]
["Mowing","Mowing will be applied as needed to remove or control herbacious weeds or other vegetation competing with desired pollinator habitat. Timing and extent of mowing will be based on site conditions such as growth stage of desired vegetation and soil moisture."]